bitfinex/quotes_ETHUSD_20250526
["timestamp","ask_amount","ask_price","bid_price","bid_amount"]
[1748272151649,1.53550615,2548.4,2547.8,0.46957375]
[1748272151650,0.78496016,2547.9,2547.8,0.46957375]
[1748272152823,0.78499097,2547.8,2547.7,7.11580035]
[1748272159580,0.7848661,2548.3,2547.7,7.11580035]
[1748272159801,0.78491093,2548.1,2547.8,9.60608113]
[1748272159925,0.8145,2548.6,2547.9,0.7987]
[1748272160233,2.64376699,2549.1,2548.3,0.7858]
[1748272160441,0.78477717,2548.5,2548.3,0.7858]
[1748272161380,0.78476272,2548.6,2548.3,0.7858]
[1748272161777,0.78469462,2548.8,2548.4,0.0392361]
[1748272161926,0.78469462,2548.8,2548.5,9.60608113]
[1748272162281,0.78466814,2548.9,2548.6,0.8219]
[1748272162429,3.58292035,2549.4,2548.6,0.8219]
[1748272162430,0.8204,2549.4,2548.8,9.60608113]
[1748272162773,5.52689989,2549.4,2548.8,9.60608113]
[1748272163126,0.78464995,2549.0,2548.8,9.60608113]
[1748272163326,0.7846522,2548.9,2548.8,9.60608113]
[1748272163866,0.78464124,2549.0,2548.8,9.60608113]
[1748272164164,0.78464124,2549.0,2548.8,10.75315905]
[1748272164368,0.7846522,2548.9,2548.8,10.75315905]
[1748272166266,0.7846522,2548.9,2548.8,1.14707792]
[1748272166460,4.7424,2549.4,2548.6,0.8219]
[1748272166645,0.78471307,2548.8,2548.6,0.8219]
[1748272169249,0.78466865,2548.9,2548.6,0.8219]
[1748272169771,0.78468308,2548.8,2548.6,0.8219]
[1748272170572,0.78471377,2548.7,2548.6,0.8219]
[1748272170872,0.78475035,2548.6,2548.4,6.00557375]
[1748272171079,0.78475035,2548.6,2548.5,0.60055737]
[1748272171366,0.78473175,2548.7,2548.5,0.60055737]
[1748272171767,0.78474456,2548.6,2548.5,0.60055737]
[1748272173064,0.78461042,2549.1,2548.5,14.93518167]
[1748272173279,0.78462284,2549.0,2548.5,14.89592795]
[1748272173444,0.78462284,2549.0,2548.6,2.93904126]
[1748272173644,0.78462284,2549.0,2548.7,0.03922971]
[1748272173958,0.78465414,2548.9,2548.6,2.93904126]
[1748272174269,0.78464993,2549.0,2548.6,2.93904126]
[1748272174588,4.672,2549.4,2548.6,2.93904126]
[1748272175175,0.78466705,2548.9,2548.6,2.35798917]
[1748272175476,0.78470204,2548.8,2548.7,1.37997014]
[1748272176052,0.78470204,2548.8,2548.7,5.99369829]
[1748272176250,0.78470204,2548.8,2548.7,4.61372815]
[1748272176455,0.7846085,2549.1,2548.8,0.8039]
[1748272176698,0.78454874,2549.3,2549.0,4.61372815]
[1748272177049,0.78458423,2549.2,2549.0,4.61372815]
[1748272178061,0.78459063,2549.1,2549.0,4.61372815]
[1748272178980,0.78457796,2549.2,2549.0,4.61372815]
[1748272179284,0.78447767,2549.5,2549.2,0.7852]
[1748272179451,0.78447767,2549.5,2549.2,5.39892815]
[1748272180500,0.78447184,2549.5,2549.2,5.39892815]
[1748272180702,0.78452245,2549.4,2549.2,5.39892815]
[1748272180884,0.78452908,2549.3,2549.2,1.0091691]
[1748272183698,0.78475592,2548.6,2548.4,9.59382815]
[1748272183894,0.78477535,2548.5,2548.4,4.9801]
[1748272184418,0.78471377,2548.7,2548.4,5.90944392]
[1748272184593,0.78474633,2548.6,2548.4,5.90944392]
[1748272185296,0.78474633,2548.6,2548.4,5.87021]
[1748272186096,0.78477535,2548.5,2548.4,5.87021]
[1748272186485,0.78477535,2548.5,2548.4,0.89011]
[1748272188009,0.78476197,2548.6,2548.4,1.28408645]
[1748272189076,0.78476197,2548.6,2548.5,0.59046602]
[1748272190410,0.78476197,2548.6,2548.4,1.7536602]
[1748272191511,0.78477535,2548.5,2548.4,1.7536602]
[1748272192284,1.61517535,2548.5,2548.4,0.46957375]
[1748272193873,0.78483695,2548.3,2548.1,0.38318863]
[1748272194211,0.78486774,2548.2,2547.9,0.46957375]
[1748272194506,0.78492449,2548.1,2547.9,0.46957375]
[1748272194807,0.78492449,2548.1,2547.9,1.37149099]
[1748272195331,0.78492935,2548.0,2547.9,1.37149099]
[1748272196500,0.78492935,2548.0,2547.9,1.21997799]
[1748272197207,0.78492935,2548.0,2547.9,0.31806075]
[1748272197422,0.78480615,2548.4,2547.9,0.31806075]
[1748272197627,0.78492935,2548.0,2547.9,0.31806075]
[1748272198269,0.78492935,2548.0,2547.7,11.26680035]
[1748272198270,0.78499097,2547.8,2547.7,11.26680035]
[1748272198505,0.78499097,2547.8,2547.7,7.11580035]
[1748272200720,0.78499097,2547.8,2547.7,7.49913041]
[1748272201099,0.7849527,2548.0,2547.7,7.49913041]
[1748272201100,0.78496382,2547.9,2547.7,7.49913041]
[1748272201817,0.78499097,2547.8,2547.7,7.49913041]
[1748272203937,0.78499097,2547.8,2547.7,12.11649963]
[1748272206637,0.78499097,2547.8,2547.7,7.49913041]
[1748272206840,0.78499097,2547.8,2547.7,7.11580035]
[1748272207133,2.11268621,2547.8,2547.7,7.11580035]
[1748272207336,6.73005543,2547.8,2547.7,7.11580035]
[1748272207515,14.73005543,2547.8,2547.7,7.11580035]
[1748272208399,10.11268621,2547.8,2547.7,7.11580035]
[1748272208599,6.03468621,2547.8,2547.7,7.11580035]
[1748272209229,0.78499097,2547.8,2547.7,7.11580035]
[1748272216429,0.78498869,2547.9,2547.7,7.11580035]
[1748272216827,0.78495937,2548.0,2547.8,4.61736922]
[1748272217137,0.78495937,2548.0,2547.8,5.41686922]
[1748272217138,0.78495715,2548.0,2547.8,5.41686922]
[1748272217438,0.78496016,2547.9,2547.8,0.7995]
[1748272217640,0.78499097,2547.8,2547.7,7.11580035]
[1748272218010,0.78497381,2547.9,2547.7,7.11580035]
[1748272218208,0.78497381,2547.9,2547.7,8.36731731]
[1748272219541,0.78499097,2547.8,2547.7,7.11580035]
[1748272229753,14.20536019,2547.8,2547.7,7.11580035]
[1748272230538,9.58799097,2547.8,2547.7,7.11580035]
[1748272230721,14.20536019,2547.8,2547.7,7.11580035]
[1748272233043,9.58799097,2547.8,2547.7,7.11580035]
[1748272233357,11.47932437,2547.8,2547.7,7.11580035]
[1748272236242,15.40232437,2547.8,2547.7,7.11580035]
[1748272236649,11.47932437,2547.8,2547.7,7.11580035]
[1748272236852,0.78499097,2547.8,2547.7,7.11580035]
[1748272237167,0.78493189,2548.0,2547.7,7.11580035]
[1748272237335,0.78496401,2547.9,2547.7,7.11580035]
[1748272237665,4.70796401,2547.9,2547.7,7.11580035]
[1748272238867,0.78491722,2548.1,2547.8,5.40856922]
[1748272239042,1.97799304,2548.3,2548.0,4.61736922]
[1748272239370,0.78488301,2548.2,2548.0,4.61736922]
[1748272240765,0.78489855,2548.1,2548.0,4.61736922]
[1748272241163,0.78499097,2547.8,2547.7,7.11580035]
[1748272241362,4.9430667,2547.8,2547.7,7.11580035]
[1748272241854,4.70799097,2547.8,2547.7,7.11580035]
[1748272243651,0.78499097,2547.8,2547.7,7.11580035]
[1748272243851,4.70799097,2547.8,2547.7,7.11580035]
[1748272244049,0.78499097,2547.8,2547.7,7.11580035]
[1748272244375,4.70799097,2547.8,2547.7,7.11580035]
[1748272245572,0.78499097,2547.8,2547.7,7.11580035]
[1748272245751,4.70799097,2547.8,2547.7,7.11580035]
[1748272247572,0.78499097,2547.8,2547.7,7.11580035]
[1748272247743,4.70799097,2547.8,2547.7,7.11580035]
[1748272248593,0.78499097,2547.8,2547.7,7.11580035]
[1748272248758,4.70799097,2547.8,2547.7,7.11580035]
[1748272249497,0.78499097,2547.8,2547.7,7.11580035]
[1748272249880,0.78491339,2548.1,2547.7,12.98335653]
[1748272250185,3.923,2548.4,2547.9,5.38606922]
[1748272250390,0.78489545,2548.2,2547.9,5.38606922]
[1748272250567,0.78489545,2548.2,2547.9,7.96098028]
[1748272250766,0.78489855,2548.1,2547.9,7.96098028]
[1748272251590,0.78487243,2548.2,2547.9,7.96098028]
[1748272251897,0.78492935,2548.0,2547.9,0.7687]
[1748272253992,0.78499097,2547.8,2547.7,11.87580035]
[1748272257136,0.78481551,2548.4,2547.7,11.87580035]
[1748272257137,0.7536,2548.5,2547.7,11.87580035]
[1748272257258,0.78494711,2548.0,2547.8,0.8273]
[1748272257962,0.78491647,2548.1,2547.8,5.44466922]
[1748272258774,0.78493156,2548.0,2547.8,5.44466922]
[1748272258976,0.77453018,2548.0,2547.8,5.44466922]
[1748272262303,0.78491681,2548.1,2547.8,5.44466922]
[1748272262476,0.78491681,2548.1,2547.9,1.30292054]
[1748272263401,0.78488465,2548.2,2547.9,1.30292054]
[1748272263704,0.78480927,2548.4,2548.1,0.7524]
[1748272263873,0.78485843,2548.3,2548.1,0.7524]
[1748272267493,0.7848196,2548.4,2548.1,0.7524]
[1748272267687,0.7848196,2548.4,2548.2,0.53697692]
[1748272268175,0.78483695,2548.3,2548.2,0.53697692]
[1748272270373,0.78483695,2548.3,2548.2,0.92880615]
[1748272271403,0.78483695,2548.3,2548.2,0.39182923]
[1748272271590,0.78488404,2548.2,2548.0,0.46873579]
[1748272271789,0.78488404,2548.2,2547.9,11.43265633]
[1748272272614,0.78492935,2548.0,2547.9,10.67765633]
[1748272273885,0.78492935,2548.0,2547.9,5.91765633]
[1748272274310,0.78492935,2548.0,2547.9,1.77165633]
[1748272274517,0.78492935,2548.0,2547.9,5.91765633]
[1748272274894,0.78492935,2548.0,2547.9,0.46873579]
[1748272275623,1.58592935,2548.0,2547.9,0.46873579]
[1748272276095,0.78499097,2547.8,2547.7,7.11580035]
[1748272276284,4.70699097,2547.8,2547.7,7.11580035]
[1748272278511,0.78498152,2547.9,2547.7,7.11580035]
[1748272278832,0.78498152,2547.9,2547.7,8.78527731]
[1748272278997,0.78498152,2547.9,2547.7,7.11580035]
[1748272279619,0.78499097,2547.8,2547.7,7.11580035]
[1748272286312,1.55859097,2547.8,2547.7,7.11580035]
[1748272290454,5.48159097,2547.8,2547.7,7.11580035]
[1748272294627,1.55859097,2547.8,2547.7,7.11580035]
[1748272294830,5.48159097,2547.8,2547.7,7.11580035]
[1748272295325,6.90824822,2547.8,2547.7,7.11580035]
[1748272296340,20.07561744,2547.8,2547.7,7.11580035]
[1748272297236,22.43061744,2547.8,2547.7,7.11580035]
[1748272297456,20.07561744,2547.8,2547.7,7.11580035]
[1748272301866,20.07561744,2547.8,2547.7,5.8015717]
[1748272303452,22.77796019,2547.8,2547.7,1.34219799]
[1748272303655,30.61796019,2547.8,2547.7,1.34219799]
[1748272305236,22.56596019,2547.8,2547.7,1.34219799]
[1748272305443,26.16196019,2547.8,2547.7,1.34219799]
[1748272305675,30.08596019,2547.8,2547.7,1.34219799]
[1748272306174,30.63596019,2547.8,2547.7,1.34219799]
[1748272309573,34.76496019,2547.8,2547.7,1.34219799]
[1748272313045,37.11996019,2547.8,2547.7,1.34219799]
[1748272313271,10.12527587,2547.2,2547.1,0.1]
[1748272313474,18.66764509,2547.2,2547.1,0.1]
[1748272314542,23.28501431,2547.2,2547.1,0.1]
[1748272314866,27.41401431,2547.2,2547.1,0.1]
[1748272315176,22.79664509,2547.2,2547.1,0.1]
[1748272315581,18.87164509,2547.2,2547.1,0.1]
[1748272315779,26.94364509,2547.2,2547.1,0.1]
[1748272317492,29.29864509,2547.2,2547.1,0.1]
[1748272318184,33.91601431,2547.2,2547.1,0.1]
[1748272318387,41.75601431,2547.2,2547.1,0.1]
[1748272319091,37.13864509,2547.2,2547.1,0.1]
[1748272319260,41.75601431,2547.2,2547.1,0.1]
[1748272319820,37.13864509,2547.2,2547.1,0.1]
[1748272320164,41.75601431,2547.2,2547.1,0.1]
[1748272320561,0.78548425,2546.2,2546.1,0.1]
[1748272320761,9.87785347,2546.2,2546.1,0.1]
[1748272320968,17.87785347,2546.2,2546.1,0.1]
[1748272321373,18.65185347,2546.2,2546.1,0.1]
[1748272321965,17.87785347,2546.2,2546.1,0.1]
[1748272322366,13.95285347,2546.2,2546.1,0.1]
[1748272322662,17.87785347,2546.2,2546.1,0.1]
[1748272325273,31.12692269,2546.2,2546.1,0.1]
[1748272325607,26.50955347,2546.2,2546.1,0.1]
[1748272325809,22.58455347,2546.2,2546.1,0.46582393]
[1748272326009,30.10855347,2546.2,2546.1,0.46582393]
[1748272326183,21.24285347,2546.2,2546.1,0.46582393]
[1748272326516,29.31685347,2546.2,2546.1,0.46582393]
[1748272326720,25.16885347,2546.2,2546.1,0.46582393]
[1748272327112,17.16885347,2546.2,2546.1,0.46582393]
[1748272327677,17.53386122,2546.2,2546.1,0.1]
[1748272328273,5.76786122,2546.2,2546.1,0.1]
[1748272328512,1.150492,2546.2,2546.1,0.1]
[1748272328813,5.076492,2546.2,2546.1,0.1]
[1748272332332,13.076492,2546.2,2546.1,0.1]
[1748272332679,0.78566939,2545.6,2545.5,2.14663334]
[1748272333019,4.71166939,2545.6,2545.5,2.14663334]
[1748272333321,0.78566939,2545.6,2545.5,2.36129667]
[1748272334120,8.0,2546.5,2545.6,0.7894]
[1748272334281,0.78560172,2545.9,2545.7,0.7894]
[1748272334485,0.78554445,2546.1,2545.7,0.7894]
[1748272334843,0.78558601,2545.9,2545.7,0.7894]
[1748272335425,0.36578311,2546.0,2545.9,0.7982]
[1748272335720,0.78546713,2546.3,2546.0,0.7982]
[1748272335883,0.78546713,2546.3,2546.1,0.7876]
[1748272336626,0.78548425,2546.2,2546.1,0.7876]
[1748272337987,9.32885347,2546.2,2546.1,0.7876]
[1748272338290,0.78560766,2545.8,2545.7,0.46873579]
[1748272338625,0.78560766,2545.8,2545.5,0.66666667]
[1748272338626,0.78566939,2545.6,2545.5,0.66666667]
[1748272338832,0.78566939,2545.6,2545.5,1.43116667]
[1748272339629,1.15175294,2545.6,2545.5,1.43116667]
[1748272340333,0.36608355,2545.6,2545.5,2.41083829]
[1748272340537,0.78564113,2545.7,2545.5,2.41083829]
[1748272340709,0.78564113,2545.7,2545.6,1.12903157]
[1748272341033,0.78562518,2545.8,2545.7,0.8011]
[1748272341523,1.15202722,2545.8,2545.7,0.8011]
[1748272341730,1.15202722,2545.8,2545.7,1.04977046]
[1748272342108,1.15202722,2545.8,2545.7,1.03417046]
[1748272342304,0.36640204,2545.8,2545.7,1.03417046]
[1748272342503,0.78554124,2546.1,2545.8,0.8009]
[1748272342713,0.78556058,2546.0,2545.8,0.8009]
[1748272342916,0.78556058,2546.0,2545.9,1.70585705]
[1748272343947,0.7855309,2546.1,2546.0,0.7691]
[1748272347400,0.78549389,2546.2,2546.0,0.7691]
[1748272347616,0.78543635,2546.4,2546.2,0.7632]
[1748272347617,0.7854684,2546.3,2546.2,0.7632]
[1748272349670,0.7573,2547.4,2546.4,0.7632]
[1748272349949,2.76314749,2547.3,2546.8,0.7632]
[1748272350100,0.78523753,2547.0,2546.8,0.7632]
[1748272350307,0.78526836,2546.9,2546.8,0.7632]
[1748272351148,1.97799304,2547.3,2546.8,0.7632]
[1748272351310,0.78520743,2547.1,2546.8,0.7632]
[1748272351508,0.78518869,2547.2,2547.0,0.8271]
[1748272351705,0.78515983,2547.3,2547.0,0.8271]
[1748272352007,0.78515983,2547.3,2547.2,0.8271]
[1748272352213,1.97799304,2547.4,2547.2,0.8271]
[1748272352642,0.78514505,2547.3,2547.2,0.8271]
[1748272353870,0.36546639,2547.6,2547.2,0.8271]
[1748272354230,0.36546639,2547.6,2547.3,0.0392514]
[1748272354574,0.36546639,2547.6,2547.4,0.8271]
[1748272354746,0.36546639,2547.6,2547.5,0.03924851]
[1748272354953,0.36546639,2547.6,2547.5,0.7934]
[1748272355133,0.78503529,2547.7,2547.5,0.7934]
[1748272355339,0.78501346,2547.8,2547.5,1.28724]
[1748272355866,0.78505259,2547.6,2547.5,1.28724]
[1748272356266,0.78503455,2547.7,2547.5,1.28724]
[1748272357376,0.78500532,2547.8,2547.5,1.28724]
[1748272357572,0.1,2547.9,2547.6,0.58924793]
[1748272357768,0.1,2547.9,2547.7,1.70170879]
[1748272357949,0.88496331,2547.9,2547.7,1.70170879]
[1748272358560,0.1,2547.9,2547.7,1.70170879]
[1748272360551,0.1,2547.9,2547.8,0.03924415]
[1748272360757,0.1,2547.9,2547.7,1.70170879]
[1748272360956,0.1,2547.9,2547.8,1.02517088]
[1748272361483,0.88496016,2547.9,2547.8,1.02517088]
[1748272361689,0.1,2547.9,2547.8,1.02517088]
[1748272362185,0.1,2547.9,2547.8,1.06441501]
[1748272362885,0.1,2547.9,2547.8,1.02517088]
[1748272363481,0.1,2547.9,2547.8,1.83751528]
[1748272363979,0.88496016,2547.9,2547.8,1.79827088]
[1748272364169,0.1,2547.9,2547.8,1.79827088]
[1748272365077,0.1,2547.9,2547.8,5.96827088]
[1748272368345,0.1,2547.9,2547.8,18.44322574]
[1748272368547,0.1,2547.9,2547.8,14.27322574]
[1748272368750,0.1,2547.9,2547.8,18.44322574]
[1748272368953,0.1,2547.9,2547.8,14.51827088]
[1748272369849,0.1,2547.9,2547.8,10.34827088]
[1748272370055,0.1,2547.9,2547.8,14.51827088]
[1748272370256,0.88496016,2547.9,2547.8,13.96827088]
[1748272371159,0.1,2547.9,2547.8,13.96827088]
[1748272372370,0.1,2547.9,2547.8,9.79827088]
[1748272372613,0.1,2547.9,2547.8,13.96827088]
[1748272372808,0.88496016,2547.9,2547.8,9.79827088]
[1748272373016,0.1,2547.9,2547.5,6.04234]
[1748272373244,0.78502608,2547.7,2547.5,6.04234]
[1748272373530,0.78500684,2547.8,2547.6,8.0]
[1748272373831,0.78502178,2547.7,2547.6,8.0]
[1748272374029,0.78500508,2547.8,2547.6,8.0]
[1748272374210,0.88497878,2547.9,2547.6,8.0]
[1748272374409,0.1,2547.9,2547.6,8.0]
[1748272374729,0.78500929,2547.8,2547.6,9.23410868]
[1748272376534,0.88497606,2547.9,2547.6,9.23410868]
[1748272378143,0.78499243,2547.8,2547.6,9.23410868]
[1748272379433,0.1,2547.9,2547.6,9.23410868]
[1748272379633,0.88496745,2547.9,2547.6,9.23410868]
[1748272379827,0.88496745,2547.9,2547.7,2.32689544]
[1748272380337,0.88497661,2547.9,2547.7,2.32689544]
[1748272380518,0.1,2547.9,2547.7,2.32689544]
[1748272380717,0.1,2547.9,2547.8,0.85744533]
[1748272380906,0.1,2547.9,2547.8,13.3323972]
[1748272381105,0.1,2547.9,2547.8,17.07588483]
[1748272382455,0.1,2548.9,2548.3,4.68610208]
[1748272382742,0.78470098,2548.8,2548.4,4.61716379]
[1748272383040,0.36640601,2548.7,2548.4,4.61716379]
[1748272383339,0.36640601,2548.7,2548.6,5.97366379]
[1748272383517,0.36640601,2548.7,2548.6,15.41795742]
[1748272383726,0.36640601,2548.7,2548.6,19.34168024]
[1748272384109,0.1,2548.9,2548.7,8.0]
[1748272384852,0.88465456,2548.9,2548.7,8.0]
[1748272385007,0.88465456,2548.9,2548.7,8.39042711]
[1748272385208,0.88465456,2548.9,2548.8,1.11912207]
[1748272385421,0.78471377,2548.7,2548.6,14.41979363]
[1748272385851,0.78471377,2548.7,2548.6,14.88854289]
[1748272386046,0.78471377,2548.7,2548.6,0.46874926]
[1748272387125,0.9268,2548.9,2548.3,12.63774926]
[1748272387327,0.78477994,2548.5,2548.3,13.03809584]
[1748272389657,0.78475557,2548.6,2548.3,13.03809584]
[1748272390060,0.78477961,2548.5,2548.3,13.03809584]
[1748272390444,0.78480615,2548.4,2548.3,0.86909584]
[1748272390629,0.78480615,2548.4,2548.3,13.01209584]
[1748272391135,0.78479135,2548.5,2548.3,13.01209584]
[1748272391538,8.40068545,2549.7,2549.1,1.317]
[1748272391539,0.7933,2549.7,2549.1,1.317]
[1748272391750,0.7933,2549.7,2549.2,8.0]
[1748272391975,0.78451305,2549.4,2549.2,8.0]
[1748272392665,0.78451114,2549.4,2549.1,9.317]
[1748272392968,0.78451114,2549.4,2549.2,1.346]
[1748272393161,0.78452908,2549.3,2549.2,1.346]
[1748272393531,0.7845149,2549.4,2549.2,1.346]
[1748272393840,1.57770622,2549.7,2549.2,1.346]
[1748272394040,0.78452908,2549.3,2549.2,1.346]
[1748272394554,0.78452093,2549.4,2549.2,1.346]
[1748272394719,0.7845218,2549.4,2549.2,1.346]
[1748272394924,0.7933,2549.7,2549.2,1.346]
[1748272395125,0.784406,2549.7,2549.3,0.03922195]
[1748272395339,0.78450687,2549.4,2549.3,0.9385222]
[1748272395552,0.78448551,2549.5,2549.3,0.9385222]
[1748272395954,0.78449831,2549.4,2549.3,0.9385222]
[1748272396329,0.78448601,2549.5,2549.3,0.9385222]
[1748272396740,2.86234064,2549.9,2548.8,14.07330488]
[1748272396741,0.8299,2549.4,2548.8,0.46874926]
[1748272397030,0.78463872,2549.0,2548.8,0.46874926]
[1748272397260,0.78462375,2549.0,2548.8,0.46874926]
[1748272397564,0.78460668,2549.1,2548.8,0.46874926]
[1748272397768,0.78462797,2549.0,2548.8,0.46874926]
[1748272398474,0.78462797,2549.0,2548.8,0.98817476]
[1748272399372,0.7846522,2548.9,2548.8,0.98817476]
[1748272399789,0.78464492,2549.0,2548.8,0.98817476]
[1748272399940,0.7846522,2548.9,2548.8,0.98817476]
[1748272403340,0.78471377,2548.7,2548.6,8.7869]
[1748272403543,0.78477083,2548.6,2548.5,8.0]
[1748272403881,0.78469212,2548.8,2548.5,8.0]
[1748272404063,0.78471377,2548.7,2548.5,8.0]
[1748272404242,0.78474456,2548.6,2548.5,8.0]
[1748272404847,0.7999,2548.9,2548.5,8.0]
[1748272405240,0.78473663,2548.7,2548.5,8.0]
[1748272406097,0.7847425,2548.7,2548.5,8.0]
[1748272407665,0.78469859,2548.8,2548.5,8.0]
[1748272407882,0.78466146,2548.9,2548.5,9.98876858]
[1748272408040,0.78466146,2548.9,2548.6,4.61371547]
[1748272408241,0.78468429,2548.8,2548.6,4.61371547]
[1748272409680,0.78460548,2549.1,2548.6,4.61371547]
[1748272409879,0.78464383,2549.0,2548.6,4.60937501]
[1748272410177,0.78464383,2549.0,2548.6,6.97996957]
[1748272410383,0.78466226,2548.9,2548.6,6.97996957]
[1748272410883,0.78463561,2549.0,2548.6,6.97996957]
[1748272411181,0.78462142,2549.0,2548.6,6.97996957]
[1748272411386,0.78466929,2548.9,2548.6,6.97996957]
[1748272412583,0.78459063,2549.1,2548.6,7.44871883]
[1748272412769,0.78466095,2548.9,2548.6,7.44871883]
[1748272413084,0.78463539,2549.0,2548.7,1.97648481]
[1748272413384,0.78465616,2548.9,2548.7,0.03923014]
[1748272413584,0.78463997,2549.0,2548.7,0.55]
[1748272413951,0.78465802,2548.9,2548.7,0.55]
[1748272414176,0.78468298,2548.8,2548.6,5.07812427]
[1748272415049,0.78471377,2548.7,2548.6,9.01874926]
[1748272415549,0.78471377,2548.7,2548.6,8.46874926]
[1748272416595,0.78471377,2548.7,2548.6,8.0]
[1748272417205,0.78468298,2548.8,2548.6,8.0]
[1748272417206,0.78468508,2548.8,2548.6,8.0]
[1748272417560,0.78471377,2548.7,2548.6,8.0]
[1748272420498,0.78466521,2548.9,2548.6,8.0]
[1748272420663,0.78468394,2548.8,2548.6,8.0]
[1748272421680,0.7551,2549.2,2548.6,14.80768933]
[1748272421884,0.78460626,2549.1,2548.8,4.61371547]
[1748272422087,0.78460626,2549.1,2548.9,0.03922839]
[1748272422285,0.78457406,2549.2,2548.8,5.37921547]
[1748272422485,0.78462162,2549.0,2548.8,5.37921547]
[1748272422698,0.78462162,2549.0,2548.8,7.32890016]
[1748272424316,0.7846522,2548.9,2548.8,7.32890016]
[1748272424510,0.7846522,2548.9,2548.8,6.56340016]
[1748272427005,0.7846522,2548.9,2548.8,7.03214942]
[1748272427405,0.7846522,2548.9,2548.8,0.46874926]
[1748272427969,0.78468298,2548.8,2548.7,0.46874926]
[1748272429126,0.78468298,2548.8,2548.6,20.31918933]
[1748272429832,0.78471377,2548.7,2548.6,20.31918933]
[1748272430019,0.78471377,2548.7,2548.6,19.56768933]
[1748272430593,0.78471377,2548.7,2548.6,14.80768933]
[1748272431627,0.78469637,2548.8,2548.6,14.80768933]
[1748272431989,1.56586992,2548.9,2548.6,14.80768933]
[1748272432187,0.8181,2549.1,2548.7,1.54337877]
[1748272432395,0.78466463,2548.9,2548.6,14.80768933]
[1748272433932,0.78466463,2548.9,2548.8,0.47022759]
[1748272437519,0.78453125,2549.3,2548.8,0.47022759]
[1748272437520,0.78462378,2549.0,2548.8,5.08394306]
[1748272438906,0.7846522,2548.9,2548.8,5.08394306]
[1748272439108,0.78457361,2549.2,2548.8,5.08394306]
[1748272439432,0.78462187,2549.0,2548.8,7.14705932]
[1748272439742,0.78460366,2549.1,2548.8,7.14705932]
[1748272440456,0.78457023,2549.2,2548.8,7.14705932]
[1748272440626,0.78457205,2549.2,2549.0,4.61371547]
[1748272441459,0.8279,2549.5,2549.0,4.61371547]
[1748272441756,0.8279,2549.5,2548.8,7.14705932]
[1748272441757,0.78459063,2549.1,2548.8,7.14705932]
[1748272441961,0.78463589,2549.0,2548.8,10.81565584]
[1748272442259,0.78463589,2549.0,2548.8,2.73965584]
[1748272442611,0.78452908,2549.3,2548.8,10.73965584]
[1748272442916,0.7846522,2548.9,2548.8,8.47022759]
[1748272443517,0.7846522,2548.9,2548.8,0.47022759]
[1748272444081,1.54636002,2549.2,2548.8,0.47022759]
[1748272445177,0.7618,2549.2,2548.8,0.47022759]
[1748272445482,0.7618,2549.4,2549.1,8.0]
[1748272446135,1.54629842,2549.4,2549.1,8.0]
[1748272446572,0.36712834,2549.3,2549.1,8.0]
[1748272447386,1.54629842,2549.4,2549.1,8.0]
[1748272448643,0.78453202,2549.3,2549.0,0.47022759]
[1748272448846,0.78456092,2549.2,2549.0,0.47022759]
[1748272449776,0.78453871,2549.3,2549.0,0.47022759]
[1748272450291,1.54629876,2549.4,2548.9,8.0]
[1748272450292,0.78456381,2549.2,2548.9,8.47022759]
[1748272451548,0.78454764,2549.3,2548.9,8.47022759]
[1748272452453,0.78454764,2549.3,2548.9,11.12079522]
[1748272453683,0.78454764,2549.3,2548.9,0.47022759]
[1748272453998,1.15168218,2549.2,2548.9,0.47022759]
[1748272454155,1.15168218,2549.2,2548.9,8.47022759]
[1748272454354,0.36712212,2549.2,2548.9,8.47022759]
[1748272454557,0.78454601,2549.3,2548.9,8.47022759]
[1748272455787,0.78454601,2549.3,2548.9,0.47022759]
[1748272456685,0.7845599,2549.2,2548.9,0.47022759]
[1748272457157,0.78459257,2549.1,2548.9,0.47022759]
[1748272458162,0.78456651,2549.2,2548.9,0.47022759]
[1748272458376,0.78462142,2549.0,2548.9,0.47022759]
[1748272459249,1.60262142,2549.0,2548.9,0.47022759]
[1748272460499,1.96982756,2549.0,2548.9,0.47022759]
[1748272460885,0.78468298,2548.8,2548.7,12.61371547]
[1748272463303,0.78468298,2548.8,2548.7,4.61371547]
[1748272466600,0.78468298,2548.8,2548.7,4.61371547]
[1748272470694,0.78476761,2548.6,2548.5,4.61371547]
[1748272471805,0.7847119,2548.8,2548.5,4.61371547]
[1748272471806,0.78473122,2548.7,2548.5,4.61371547]
[1748272473212,0.78471027,2548.8,2548.5,5.66644115]
[1748272473419,0.7847262,2548.7,2548.5,4.61371547]
[1748272476907,0.78466466,2548.9,2548.5,4.61371547]
[1748272477217,0.78466466,2548.9,2548.8,4.61371547]
[1748272477790,0.78471377,2548.7,2548.6,4.61371547]
[1748272480218,0.78471377,2548.7,2548.6,4.61171547]
[1748272481685,0.78477535,2548.5,2548.4,13.08394306]
[1748272482096,0.78477535,2548.5,2548.4,8.47022759]
[1748272482688,1.58397535,2548.5,2548.4,0.47022759]
[1748272483093,0.78480615,2548.4,2548.3,8.0]
[1748272484704,0.78483695,2548.3,2548.2,5.08394306]
[1748272485807,0.78483695,2548.3,2548.2,4.99664162]
[1748272487239,0.78486774,2548.2,2548.1,0.47022759]
[1748272487446,0.78486774,2548.2,2548.0,4.91371547]
[1748272487447,0.78489855,2548.1,2548.0,0.77022759]
[1748272488142,0.78489855,2548.1,2548.0,5.38394306]
[1748272488752,0.78489855,2548.1,2548.0,4.91371547]
[1748272491016,1.59189855,2548.1,2548.0,0.3]
[1748272491431,1.59189855,2548.1,2548.0,4.91371547]
[1748272491619,0.78489855,2548.1,2548.0,4.91371547]
[1748272495045,0.78489855,2548.1,2548.0,0.3]
[1748272496032,1.57509855,2548.1,2548.0,0.3]
[1748272496535,9.57509855,2548.1,2548.0,0.3]
[1748272497055,10.49076928,2548.1,2548.0,0.3]
[1748272500415,14.61976928,2548.1,2548.0,0.3]
[1748272500952,18.33076928,2548.1,2548.0,0.3]
[1748272501970,26.39776928,2548.1,2548.0,0.3]
[1748272503033,0.78517587,2547.2,2547.1,0.1]
[1748272516499,1.59227587,2547.2,2547.1,0.1]
[1748272518990,6.20599134,2547.2,2547.1,0.1]
[1748272519349,14.75599134,2547.2,2547.1,0.1]
[1748272519500,15.12166207,2547.2,2547.1,0.1]
[1748272521227,19.25266207,2547.2,2547.1,0.1]
[1748272521621,14.6389466,2547.2,2547.1,0.1]
[1748272521817,13.8819466,2547.2,2547.1,0.1]
[1748272522316,9.9579466,2547.2,2547.1,0.1]
[1748272522518,1.9579466,2547.2,2547.1,0.1]
[1748272522717,1.1508466,2547.2,2547.1,0.1]
[1748272525343,0.36567073,2547.2,2547.0,4.61371547]